[Event "Titled Tuesday Blitz February 15 Late 2022"]
[White "Levine, Joseph"]
[Black "Haszon, David"]
[WhiteFideId "30940346"]
[BlackFideId "733610"]
[WhiteElo "1802"]
[BlackElo "2201"]
[Result "1-0"]
[Round "07"]
[TimeControl "180+1"]
[Date "2022.02.16"]
[WhiteClock "0:00:30"]
[BlackClock "0:00:26"]

1. e4 {[%clk 0:03:00]}  c6 {[%clk 0:03:00]} 2. d3 {[%clk 0:02:59]}  d5 {[%clk 0:03:00]} 3. Nd2 {[%clk 0:02:58]}  dxe4 {[%clk 0:03:00]} 4. dxe4 {[%clk 0:02:59]}  e5 {[%clk 0:03:00]} 5. Ngf3 {[%clk 0:02:59]}  Qc7 {[%clk 0:02:59]} 6. Bc4 {[%clk 0:02:58]}  Be7 {[%clk 0:02:57]} 7. O-O {[%clk 0:02:56]}  Nf6 {[%clk 0:02:55]} 8. c3 {[%clk 0:02:56]}  b5 {[%clk 0:02:54]} 9. Bb3 {[%clk 0:02:54]}  O-O {[%clk 0:02:53]} 10. a4 {[%clk 0:02:55]}  Nbd7 {[%clk 0:02:50]} 11. axb5 {[%clk 0:02:53]}  cxb5 {[%clk 0:02:51]} 12. Qe2 {[%clk 0:02:53]}  a6 {[%clk 0:02:48]} 13. Rd1 {[%clk 0:02:51]}  Bb7 {[%clk 0:02:48]} 14. Bc2 {[%clk 0:02:50]}  Nc5 {[%clk 0:02:47]} 15. b3 {[%clk 0:02:28]}  Ne6 {[%clk 0:02:45]} 16. Bb2 {[%clk 0:02:26]}  Nf4 {[%clk 0:02:45]} 17. Qe1 {[%clk 0:02:24]}  Rac8 {[%clk 0:02:38]} 18. c4 {[%clk 0:02:15]}  Bc5 {[%clk 0:02:37]} 19. Bxe5 {[%clk 0:02:14]}  Bd6 {[%clk 0:02:22]} 20. Bxd6 {[%clk 0:02:13]}  Qxd6 {[%clk 0:02:23]} 21. e5 {[%clk 0:02:14]}  Qc6 {[%clk 0:02:20]} 22. exf6 {[%clk 0:02:13]}  Qxf6 {[%clk 0:02:21]} 23. Be4 {[%clk 0:02:11]}  Bxe4 {[%clk 0:02:19]} 24. Qxe4 {[%clk 0:02:10]}  Rfe8 {[%clk 0:02:17]} 25. Qb7 {[%clk 0:01:59]}  Rb8 {[%clk 0:02:08]} 26. Qxa6 {[%clk 0:01:56]}  Rb6 {[%clk 0:01:57]} 27. Qa8 {[%clk 0:01:49]}  Rbb8 {[%clk 0:01:56]} 28. Qa6 {[%clk 0:01:37]}  Rb6 {[%clk 0:01:56]} 29. Re1 {[%clk 0:01:26]}  Rd8 {[%clk 0:01:39]} 30. Qa8 {[%clk 0:01:21]}  Rbb8 {[%clk 0:01:39]} 31. Qe4 {[%clk 0:01:20]}  Nd3 {[%clk 0:01:09]} 32. Rf1 {[%clk 0:01:10]}  Nc5 {[%clk 0:00:59]} 33. Qc2 {[%clk 0:01:06]}  b4 {[%clk 0:00:56]} 34. Ne4 {[%clk 0:01:01]}  Qg6 {[%clk 0:00:55]} 35. Rae1 {[%clk 0:00:56]}  Nd3 {[%clk 0:00:53]} 36. Re3 {[%clk 0:00:51]}  Nf4 {[%clk 0:00:53]} 37. g3 {[%clk 0:00:46]}  Nh3+ {[%clk 0:00:49]} 38. Kh1 {[%clk 0:00:43]}  h6 {[%clk 0:00:42]} 39. Qe2 {[%clk 0:00:38]}  Rdc8 {[%clk 0:00:31]} 40. Ng1 {[%clk 0:00:37]}  Ng5 {[%clk 0:00:30]} 41. Nxg5 {[%clk 0:00:36]}  hxg5 {[%clk 0:00:31]} 42. Re1 {[%clk 0:00:36]}  Kh7 {[%clk 0:00:30]} 43. Nf3 {[%clk 0:00:35]}  Qc6 {[%clk 0:00:29]} 44. Re4 {[%clk 0:00:35]}  f5 {[%clk 0:00:29]} 45. Nxg5+ {[%clk 0:00:31]}  Kh8 {[%clk 0:00:26]} 46. Qh5+ {[%clk 0:00:30]} 1-0


[Site "https://www.chess.com"]

[Event "Titled Tuesday Blitz February 15 Late 2022"]
[White "Lugovskoy, Maxim"]
[Black "Nepomniachtchi, Ian"]
[WhiteFideId "24126454"]
[BlackFideId "4168119"]
[WhiteElo "2444"]
[BlackElo "2740"]
[Result "1/2-1/2"]
[Round "07"]
[TimeControl "180+1"]
[Date "2022.02.15"]
[WhiteClock "0:02:02"]
[BlackClock "0:01:38"]

1. e4 {[%clk 0:02:59]}  e5 {[%clk 0:02:59]} 2. Nf3 {[%clk 0:02:59]}  Nc6 {[%clk 0:03:00]} 3. Nc3 {[%clk 0:02:59]}  Nf6 {[%clk 0:02:59]} 4. d4 {[%clk 0:02:59]}  exd4 {[%clk 0:03:00]} 5. Nxd4 {[%clk 0:02:59]}  Bb4 {[%clk 0:03:01]} 6. Nxc6 {[%clk 0:02:59]}  bxc6 {[%clk 0:03:01]} 7. Bd3 {[%clk 0:02:59]}  d5 {[%clk 0:03:01]} 8. exd5 {[%clk 0:02:59]}  O-O {[%clk 0:03:01]} 9. O-O {[%clk 0:02:58]}  cxd5 {[%clk 0:03:02]} 10. h3 {[%clk 0:02:58]}  c6 {[%clk 0:02:56]} 11. Qf3 {[%clk 0:02:58]}  Re8 {[%clk 0:02:56]} 12. Bf4 {[%clk 0:02:57]}  Bd6 {[%clk 0:02:54]} 13. Rfe1 {[%clk 0:02:55]}  Bxf4 {[%clk 0:02:51]} 14. Qxf4 {[%clk 0:02:55]}  Be6 {[%clk 0:02:51]} 15. Ne2 {[%clk 0:02:54]}  Rb8 {[%clk 0:02:48]} 16. b3 {[%clk 0:02:54]}  c5 {[%clk 0:02:48]} 17. c4 {[%clk 0:02:53]}  h6 {[%clk 0:02:34]} 18. Rad1 {[%clk 0:02:51]}  Qa5 {[%clk 0:02:32]} 19. Qd2 {[%clk 0:02:44]}  Qxd2 {[%clk 0:02:29]} 20. Rxd2 {[%clk 0:02:44]}  dxc4 {[%clk 0:02:29]} 21. Bxc4 {[%clk 0:02:39]}  Bxc4 {[%clk 0:02:29]} 22. bxc4 {[%clk 0:02:40]}  Rb4 {[%clk 0:02:27]} 23. Rc2 {[%clk 0:02:37]}  Nd7 {[%clk 0:02:23]} 24. Kf1 {[%clk 0:02:34]}  Nb6 {[%clk 0:02:22]} 25. Nf4 {[%clk 0:02:18]}  Rxe1+ {[%clk 0:02:21]} 26. Kxe1 {[%clk 0:02:19]}  Nxc4 {[%clk 0:02:06]} 27. Nd3 {[%clk 0:02:16]}  Rb1+ {[%clk 0:02:05]} 28. Ke2 {[%clk 0:02:16]}  Na3 {[%clk 0:01:41]} 29. Rxc5 {[%clk 0:02:15]}  Ra1 {[%clk 0:01:41]} 30. Ra5 {[%clk 0:02:06]}  Rxa2+ {[%clk 0:01:36]} 31. Kf3 {[%clk 0:02:04]}  Ra1 {[%clk 0:01:36]} 32. Rxa7 {[%clk 0:02:03]}  Nc2 {[%clk 0:01:37]} 33. Rxa1 {[%clk 0:02:03]}  Nxa1 {[%clk 0:01:38]} 34. Nc5 {[%clk 0:02:02]} 1/2-1/2


[Site "https://www.chess.com"]

[Event "Titled Tuesday Blitz February 15 Late 2022"]
[White "Martirosyan, Haik M."]
[Black "Svane, Rasmus"]
[WhiteFideId "13306553"]
[BlackFideId "4657101"]
[WhiteElo "2735"]
[BlackElo "2645"]
[Result "1-0"]
[Round "07"]
[TimeControl "180+1"]
[Date "2022.02.15"]
[WhiteClock "0:00:19"]
[BlackClock "0:00:05"]

1. c4 {[%clk 0:03:00]}  Nf6 {[%clk 0:02:58]} 2. Nc3 {[%clk 0:03:00]}  e5 {[%clk 0:02:59]} 3. Nf3 {[%clk 0:03:00]}  Nc6 {[%clk 0:02:59]} 4. e3 {[%clk 0:03:01]}  Bb4 {[%clk 0:02:54]} 5. Qc2 {[%clk 0:03:01]}  Bxc3 {[%clk 0:02:48]} 6. Qxc3 {[%clk 0:03:02]}  Qe7 {[%clk 0:02:49]} 7. d4 {[%clk 0:03:01]}  e4 {[%clk 0:02:49]} 8. Nd2 {[%clk 0:02:58]}  d5 {[%clk 0:02:49]} 9. a3 {[%clk 0:02:56]}  a5 {[%clk 0:02:49]} 10. b3 {[%clk 0:02:49]}  O-O {[%clk 0:02:48]} 11. h3 {[%clk 0:02:49]}  h5 {[%clk 0:02:45]} 12. Be2 {[%clk 0:02:43]}  Rd8 {[%clk 0:02:36]} 13. Bb2 {[%clk 0:02:42]}  Be6 {[%clk 0:02:31]} 14. Qc2 {[%clk 0:02:35]}  Qd7 {[%clk 0:02:16]} 15. Bc3 {[%clk 0:02:33]}  Ne7 {[%clk 0:02:13]} 16. b4 {[%clk 0:02:12]}  axb4 {[%clk 0:02:09]} 17. Bxb4 {[%clk 0:02:13]}  Ng6 {[%clk 0:01:55]} 18. cxd5 {[%clk 0:02:08]}  Nxd5 {[%clk 0:01:48]} 19. Rc1 {[%clk 0:02:00]}  Bf5 {[%clk 0:01:43]} 20. O-O {[%clk 0:01:55]}  Bxh3 {[%clk 0:01:14]} 21. Nxe4 {[%clk 0:01:42]}  Nh4 {[%clk 0:00:46]} 22. g3 {[%clk 0:01:30]}  Bxf1 {[%clk 0:00:43]} 23. Rxf1 {[%clk 0:01:30]}  Nf5 {[%clk 0:00:29]} 24. Nc5 {[%clk 0:01:27]}  Qc8 {[%clk 0:00:26]} 25. Qe4 {[%clk 0:01:24]}  b6 {[%clk 0:00:25]} 26. Nd3 {[%clk 0:01:21]}  Nxb4 {[%clk 0:00:25]} 27. axb4 {[%clk 0:01:21]}  Nd6 {[%clk 0:00:25]} 28. Qf4 {[%clk 0:01:13]}  g6 {[%clk 0:00:24]} 29. e4 {[%clk 0:01:11]}  Qe6 {[%clk 0:00:20]} 30. Bf3 {[%clk 0:01:08]}  Ra3 {[%clk 0:00:20]} 31. d5 {[%clk 0:01:04]}  Qe7 {[%clk 0:00:19]} 32. Ne5 {[%clk 0:01:02]}  Re8 {[%clk 0:00:19]} 33. Nc6 {[%clk 0:00:59]}  Qd7 {[%clk 0:00:20]} 34. e5 {[%clk 0:00:58]}  Nf5 {[%clk 0:00:19]} 35. Bg2 {[%clk 0:00:54]}  Ne7 {[%clk 0:00:17]} 36. e6 {[%clk 0:00:49]}  fxe6 {[%clk 0:00:17]} 37. Ne5 {[%clk 0:00:49]}  Nxd5 {[%clk 0:00:10]} 38. Bxd5 {[%clk 0:00:46]}  Qg7 {[%clk 0:00:05]} 39. Bc4 {[%clk 0:00:41]}  Rc3 {[%clk 0:00:04]} 40. Qe4 {[%clk 0:00:37]}  Kh7 {[%clk 0:00:04]} 41. Kg2 {[%clk 0:00:35]}  Rd8 {[%clk 0:00:04]} 42. Nf3 {[%clk 0:00:34]}  c5 {[%clk 0:00:03]} 43. bxc5 {[%clk 0:00:33]}  bxc5 {[%clk 0:00:04]} 44. Ng5+ {[%clk 0:00:32]}  Kh6 {[%clk 0:00:05]} 45. Nxe6 {[%clk 0:00:31]}  Rd4 {[%clk 0:00:04]} 46. Nxd4 {[%clk 0:00:27]}  Qxd4 {[%clk 0:00:05]} 47. Qxd4 {[%clk 0:00:25]}  cxd4 {[%clk 0:00:06]} 48. Ba6 {[%clk 0:00:25]}  Ra3 {[%clk 0:00:05]} 49. Bb5 {[%clk 0:00:25]}  Rb3 {[%clk 0:00:06]} 50. Bc4 {[%clk 0:00:25]}  Rc3 {[%clk 0:00:06]} 51. Bd5 {[%clk 0:00:25]}  g5 {[%clk 0:00:06]} 52. Rd1 {[%clk 0:00:25]}  d3 {[%clk 0:00:06]} 53. Be4 {[%clk 0:00:25]}  h4 {[%clk 0:00:06]} 54. Rxd3 {[%clk 0:00:23]}  Rc4 {[%clk 0:00:07]} 55. Rd6+ {[%clk 0:00:22]}  Kg7 {[%clk 0:00:07]} 56. Bd3 {[%clk 0:00:21]}  Rc3 {[%clk 0:00:06]} 57. g4 {[%clk 0:00:21]}  Kf7 {[%clk 0:00:06]} 58. Bf5 {[%clk 0:00:19]}  h3+ {[%clk 0:00:03]} 59. Kh2 {[%clk 0:00:19]}  Rf3 {[%clk 0:00:04]} 60. Rg6 {[%clk 0:00:19]}  Rxf2+ {[%clk 0:00:04]} 61. Kxh3 {[%clk 0:00:19]}  Rf3+ {[%clk 0:00:05]} 62. Kg2 {[%clk 0:00:19]}  Re3 {[%clk 0:00:04]} 63. Rxg5 {[%clk 0:00:19]}  Kf6 {[%clk 0:00:05]} 64. Rg6+ {[%clk 0:00:19]}  Kf7 {[%clk 0:00:06]} 65. Ra6 {[%clk 0:00:19]}  Rc3 {[%clk 0:00:05]} 66. Kf2 {[%clk 0:00:19]} 1-0


[Site "https://www.chess.com"]

[Event "Titled Tuesday Blitz February 15 Late 2022"]
[White "Matinian, Nikita"]
[Black "Andreikin, Dmitry"]
[WhiteFideId "24129100"]
[BlackFideId "4158814"]
[WhiteElo "2422"]
[BlackElo "2736"]
[Result "0-1"]
[Round "07"]
[TimeControl "180+1"]
[Date "2022.02.15"]
[WhiteClock "0:02:29"]
[BlackClock "0:02:10"]

1. e4 {[%clk 0:03:00]}  c5 {[%clk 0:03:00]} 2. Nc3 {[%clk 0:02:59]}  a6 {[%clk 0:03:00]} 3. f4 {[%clk 0:02:57]}  b5 {[%clk 0:03:00]} 4. Nf3 {[%clk 0:02:58]}  Bb7 {[%clk 0:03:00]} 5. d3 {[%clk 0:02:57]}  e6 {[%clk 0:03:00]} 6. g4 {[%clk 0:02:56]}  d5 {[%clk 0:03:00]} 7. e5 {[%clk 0:02:55]}  h5 {[%clk 0:02:49]} 8. g5 {[%clk 0:02:55]}  Ne7 {[%clk 0:02:48]} 9. a4 {[%clk 0:02:51]}  b4 {[%clk 0:02:44]} 10. Ne2 {[%clk 0:02:52]}  h4 {[%clk 0:02:43]} 11. Be3 {[%clk 0:02:42]}  d4 {[%clk 0:02:42]} 12. Nexd4 {[%clk 0:02:39]}  cxd4 {[%clk 0:02:40]} 13. Bxd4 {[%clk 0:02:40]}  Nf5 {[%clk 0:02:22]} 14. Bf2 {[%clk 0:02:40]}  Nc6 {[%clk 0:02:22]} 15. Bh3 {[%clk 0:02:38]}  Ncd4 {[%clk 0:02:18]} 16. Bg4 {[%clk 0:02:37]}  Qd5 {[%clk 0:02:11]} 17. Bxd4 {[%clk 0:02:29]}  Nxd4 {[%clk 0:02:10]} 0-1


[Site "https://www.chess.com"]

[Event "Titled Tuesday Blitz February 15 Late 2022"]
[White "Michelakos, Panagiotis"]
[Black "Petrosyan, Manuel"]
[WhiteFideId "4216067"]
[BlackFideId "13300857"]
[WhiteElo "2140"]
[BlackElo "2592"]
[Result "1-0"]
[Round "07"]
[TimeControl "180+1"]
[Date "2022.02.15"]
[WhiteClock "0:00:38"]
[BlackClock "0:00:02"]

1. d4 {[%clk 0:03:00]}  d5 {[%clk 0:02:59]} 2. c4 {[%clk 0:02:57]}  e6 {[%clk 0:02:59]} 3. Nc3 {[%clk 0:02:56]}  Nf6 {[%clk 0:02:58]} 4. cxd5 {[%clk 0:02:57]}  exd5 {[%clk 0:02:57]} 5. Bg5 {[%clk 0:02:57]}  Be7 {[%clk 0:02:57]} 6. Qc2 {[%clk 0:02:55]}  c6 {[%clk 0:02:51]} 7. e3 {[%clk 0:02:54]}  Nbd7 {[%clk 0:02:49]} 8. Bd3 {[%clk 0:02:52]}  h6 {[%clk 0:02:49]} 9. Bh4 {[%clk 0:02:45]}  Nh5 {[%clk 0:02:44]} 10. Bxe7 {[%clk 0:02:43]}  Qxe7 {[%clk 0:02:45]} 11. Nge2 {[%clk 0:02:43]}  O-O {[%clk 0:02:39]} 12. O-O-O {[%clk 0:02:36]}  Nhf6 {[%clk 0:02:33]} 13. Rdg1 {[%clk 0:02:21]}  c5 {[%clk 0:02:29]} 14. g4 {[%clk 0:02:18]}  c4 {[%clk 0:02:18]} 15. Bf5 {[%clk 0:02:15]}  g6 {[%clk 0:02:16]} 16. g5 {[%clk 0:01:58]}  hxg5 {[%clk 0:02:00]} 17. Rxg5 {[%clk 0:01:59]}  Nh7 {[%clk 0:01:50]} 18. Rg2 {[%clk 0:01:59]}  Kh8 {[%clk 0:01:32]} 19. Nxd5 {[%clk 0:01:48]}  Qd6 {[%clk 0:01:29]} 20. Be4 {[%clk 0:01:46]}  Ndf6 {[%clk 0:00:58]} 21. Nxf6 {[%clk 0:01:46]}  Nxf6 {[%clk 0:00:58]} 22. h4 {[%clk 0:01:44]}  Nxe4 {[%clk 0:00:52]} 23. Qxe4 {[%clk 0:01:45]}  Bf5 {[%clk 0:00:50]} 24. Qf3 {[%clk 0:01:28]}  Qc6 {[%clk 0:00:23]} 25. d5 {[%clk 0:01:10]}  Qa4 {[%clk 0:00:23]} 26. e4 {[%clk 0:01:07]}  Qxa2 {[%clk 0:00:21]} 27. Rg5 {[%clk 0:00:50]}  Rae8 {[%clk 0:00:04]} 28. Nc3 {[%clk 0:00:43]}  Bxe4 {[%clk 0:00:02]} 29. Qf6+ {[%clk 0:00:38]} 1-0


[Site "https://www.chess.com"]

[Event "Titled Tuesday Blitz February 15 Late 2022"]
[White "Mikhalsky, Vladimir"]
[Black "Karttunen, Mika"]
[WhiteFideId "14144352"]
[BlackFideId "502081"]
[WhiteElo "2248"]
[BlackElo "2343"]
[Result "1/2-1/2"]
[Round "07"]
[TimeControl "180+1"]
[Date "2022.02.16"]
[WhiteClock "0:00:08"]
[BlackClock "0:00:10"]

1. c4 {[%clk 0:03:00]}  e5 {[%clk 0:02:58]} 2. Nc3 {[%clk 0:03:00]}  Nf6 {[%clk 0:02:57]} 3. g3 {[%clk 0:03:01]}  Bb4 {[%clk 0:02:53]} 4. Bg2 {[%clk 0:02:59]}  O-O {[%clk 0:02:51]} 5. Qb3 {[%clk 0:02:56]}  Be7 {[%clk 0:02:13]} 6. e3 {[%clk 0:02:53]}  Na6 {[%clk 0:02:11]} 7. Nge2 {[%clk 0:02:51]}  c6 {[%clk 0:02:04]} 8. d4 {[%clk 0:02:40]}  Nb4 {[%clk 0:01:58]} 9. O-O {[%clk 0:02:20]}  exd4 {[%clk 0:01:56]} 10. Nxd4 {[%clk 0:02:19]}  Nd3 {[%clk 0:01:44]} 11. Rd1 {[%clk 0:02:16]}  Nxc1 {[%clk 0:01:39]} 12. Raxc1 {[%clk 0:02:16]}  d6 {[%clk 0:01:35]} 13. e4 {[%clk 0:01:54]}  Qc7 {[%clk 0:01:30]} 14. Nf5 {[%clk 0:01:53]}  Bxf5 {[%clk 0:01:26]} 15. exf5 {[%clk 0:01:52]}  Rfe8 {[%clk 0:01:26]} 16. Ne2 {[%clk 0:01:45]}  Bf8 {[%clk 0:01:23]} 17. Nf4 {[%clk 0:01:44]}  Re5 {[%clk 0:01:21]} 18. Qd3 {[%clk 0:01:43]}  Rae8 {[%clk 0:01:19]} 19. h3 {[%clk 0:01:39]}  Qa5 {[%clk 0:01:05]} 20. a3 {[%clk 0:01:18]}  Rxf5 {[%clk 0:00:56]} 21. c5 {[%clk 0:01:11]}  Rxf4 {[%clk 0:00:47]} 22. gxf4 {[%clk 0:01:10]}  dxc5 {[%clk 0:00:47]} 23. Qc3 {[%clk 0:01:08]}  Qc7 {[%clk 0:00:47]} 24. f5 {[%clk 0:00:57]}  Qf4 {[%clk 0:00:46]} 25. Qf3 {[%clk 0:00:56]}  Qe5 {[%clk 0:00:45]} 26. Re1 {[%clk 0:00:53]}  Qxe1+ {[%clk 0:00:45]} 27. Rxe1 {[%clk 0:00:53]}  Rxe1+ {[%clk 0:00:46]} 28. Bf1 {[%clk 0:00:53]}  Ne4 {[%clk 0:00:40]} 29. Kg2 {[%clk 0:00:49]}  Nd2 {[%clk 0:00:40]} 30. Qc3 {[%clk 0:00:42]}  Rxf1 {[%clk 0:00:30]} 31. Qxd2 {[%clk 0:00:42]}  Rb1 {[%clk 0:00:31]} 32. Qc2 {[%clk 0:00:41]}  Re1 {[%clk 0:00:30]} 33. Qc3 {[%clk 0:00:41]}  Re4 {[%clk 0:00:30]} 34. f6 {[%clk 0:00:41]}  b6 {[%clk 0:00:28]} 35. Qd3 {[%clk 0:00:40]}  Re6 {[%clk 0:00:28]} 36. Qd7 {[%clk 0:00:36]}  Rxf6 {[%clk 0:00:22]} 37. Qxa7 {[%clk 0:00:36]}  b5 {[%clk 0:00:23]} 38. Qb6 {[%clk 0:00:35]}  c4 {[%clk 0:00:23]} 39. a4 {[%clk 0:00:33]}  bxa4 {[%clk 0:00:22]} 40. Qa6 {[%clk 0:00:33]}  c3 {[%clk 0:00:21]} 41. bxc3 {[%clk 0:00:33]}  a3 {[%clk 0:00:22]} 42. c4 {[%clk 0:00:31]}  Rf5 {[%clk 0:00:22]} 43. Qa8 {[%clk 0:00:30]}  g6 {[%clk 0:00:22]} 44. Qxc6 {[%clk 0:00:27]}  Ra5 {[%clk 0:00:22]} 45. Qb6 {[%clk 0:00:24]}  Ra8 {[%clk 0:00:21]} 46. Qb7 {[%clk 0:00:24]}  Ra4 {[%clk 0:00:20]} 47. Qb5 {[%clk 0:00:24]}  Rb4 {[%clk 0:00:21]} 48. Qa6 {[%clk 0:00:23]}  Rb2 {[%clk 0:00:19]} 49. Qa8 {[%clk 0:00:20]}  Rc2 {[%clk 0:00:19]} 50. c5 {[%clk 0:00:19]}  a2 {[%clk 0:00:18]} 51. c6 {[%clk 0:00:19]}  Kg7 {[%clk 0:00:18]} 52. c7 {[%clk 0:00:18]}  Rxc7 {[%clk 0:00:15]} 53. Qxa2 {[%clk 0:00:18]}  Be7 {[%clk 0:00:16]} 54. Qb2+ {[%clk 0:00:18]}  Bf6 {[%clk 0:00:16]} 55. Qb6 {[%clk 0:00:18]}  Rc2 {[%clk 0:00:16]} 56. Qb7 {[%clk 0:00:18]}  Rd2 {[%clk 0:00:16]} 57. Kf3 {[%clk 0:00:17]}  Bd4 {[%clk 0:00:16]} 58. Ke4 {[%clk 0:00:18]}  Bf6 {[%clk 0:00:16]} 59. f3 {[%clk 0:00:17]}  h5 {[%clk 0:00:16]} 60. Ke3 {[%clk 0:00:16]}  Rd6 {[%clk 0:00:15]} 61. Qc8 {[%clk 0:00:16]}  Re6+ {[%clk 0:00:16]} 62. Kf2 {[%clk 0:00:17]}  Re5 {[%clk 0:00:16]} 63. Kg3 {[%clk 0:00:17]}  h4+ {[%clk 0:00:17]} 64. Kg4 {[%clk 0:00:17]}  Rg5+ {[%clk 0:00:17]} 65. Kf4 {[%clk 0:00:16]}  Rg3 {[%clk 0:00:17]} 66. Ke4 {[%clk 0:00:16]}  Rg2 {[%clk 0:00:16]} 67. f4 {[%clk 0:00:16]}  Rf2 {[%clk 0:00:15]} 68. Ke3 {[%clk 0:00:16]}  Rf1 {[%clk 0:00:15]} 69. Ke4 {[%clk 0:00:17]}  Re1+ {[%clk 0:00:15]} 70. Kf3 {[%clk 0:00:17]}  Re6 {[%clk 0:00:15]} 71. f5 {[%clk 0:00:16]}  gxf5 {[%clk 0:00:15]} 72. Kf4 {[%clk 0:00:17]}  Kg6 {[%clk 0:00:15]} 73. Qg8+ {[%clk 0:00:16]}  Bg7 {[%clk 0:00:15]} 74. Qd8 {[%clk 0:00:15]}  Re4+ {[%clk 0:00:16]} 75. Kf3 {[%clk 0:00:15]}  Rd4 {[%clk 0:00:14]} 76. Qb6+ {[%clk 0:00:14]}  Bf6 {[%clk 0:00:15]} 77. Qb8 {[%clk 0:00:13]}  Rd3+ {[%clk 0:00:15]} 78. Kg2 {[%clk 0:00:13]}  Rg3+ {[%clk 0:00:16]} 79. Kf2 {[%clk 0:00:13]}  Bg7 {[%clk 0:00:15]} 80. Qd6+ {[%clk 0:00:13]}  Bf6 {[%clk 0:00:15]} 81. Qf8 {[%clk 0:00:13]}  f4 {[%clk 0:00:15]} 82. Qg8+ {[%clk 0:00:12]}  Bg7 {[%clk 0:00:15]} 83. Qc8 {[%clk 0:00:12]}  f3 {[%clk 0:00:14]} 84. Qc6+ {[%clk 0:00:12]}  Bf6 {[%clk 0:00:14]} 85. Qe4+ {[%clk 0:00:12]}  Kg7 {[%clk 0:00:15]} 86. Qf5 {[%clk 0:00:11]}  Rg6 {[%clk 0:00:09]} 87. Qxf3 {[%clk 0:00:11]}  Rg3 {[%clk 0:00:09]} 88. Qf5 {[%clk 0:00:10]}  Rg5 {[%clk 0:00:09]} 89. Qe4 {[%clk 0:00:10]}  Re5 {[%clk 0:00:09]} 90. Qg4+ {[%clk 0:00:10]}  Kf8 {[%clk 0:00:09]} 91. Kf3 {[%clk 0:00:09]}  Bg5 {[%clk 0:00:09]} 92. Qc8+ {[%clk 0:00:09]}  Kg7 {[%clk 0:00:09]} 93. Kg4 {[%clk 0:00:10]}  Bf6 {[%clk 0:00:08]} 94. Kf4 {[%clk 0:00:09]}  Rg5 {[%clk 0:00:08]} 95. Qc2 {[%clk 0:00:08]}  Rg3 {[%clk 0:00:08]} 96. Kf5 {[%clk 0:00:08]}  Rf3+ {[%clk 0:00:08]} 97. Kg4 {[%clk 0:00:08]}  Rg3+ {[%clk 0:00:08]} 98. Kf4 {[%clk 0:00:07]}  Rg6 {[%clk 0:00:08]} 99. Kf5 {[%clk 0:00:07]}  Rg5+ {[%clk 0:00:09]} 100. Kf4 {[%clk 0:00:07]}  Rg6 {[%clk 0:00:09]} 101. Kf5 {[%clk 0:00:08]}  Rg5+ {[%clk 0:00:10]} 102. Kf4 {[%clk 0:00:08]} 1/2-1/2


[Site "https://www.chess.com"]

[Event "Titled Tuesday Blitz February 15 Late 2022"]
[White "Moroni, Luca Jr"]
[Black "Zierk, Steven"]
[WhiteFideId "865834"]
[BlackFideId "2034255"]
[WhiteElo "2573"]
[BlackElo "2494"]
[Result "0-1"]
[Round "07"]
[TimeControl "180+1"]
[Date "2022.02.15"]
[WhiteClock "0:00:01"]
[BlackClock "0:00:17"]

1. d4 {[%clk 0:03:00]}  d5 {[%clk 0:02:59]} 2. Bf4 {[%clk 0:02:59]}  Nf6 {[%clk 0:02:59]} 3. e3 {[%clk 0:02:59]}  c5 {[%clk 0:02:59]} 4. dxc5 {[%clk 0:02:59]}  e6 {[%clk 0:02:57]} 5. b4 {[%clk 0:02:59]}  a5 {[%clk 0:02:57]} 6. c3 {[%clk 0:02:59]}  axb4 {[%clk 0:02:57]} 7. cxb4 {[%clk 0:02:59]}  b6 {[%clk 0:02:58]} 8. Bxb8 {[%clk 0:02:57]}  Rxb8 {[%clk 0:02:57]} 9. Bb5+ {[%clk 0:02:57]}  Ke7 {[%clk 0:02:52]} 10. c6 {[%clk 0:02:57]}  Qd6 {[%clk 0:02:46]} 11. a3 {[%clk 0:02:34]}  Ne8 {[%clk 0:02:38]} 12. Nf3 {[%clk 0:02:33]}  Nc7 {[%clk 0:02:37]} 13. Nc3 {[%clk 0:02:17]}  g6 {[%clk 0:02:18]} 14. O-O {[%clk 0:02:08]}  Bg7 {[%clk 0:02:16]} 15. Nd4 {[%clk 0:02:09]}  e5 {[%clk 0:02:16]} 16. Nf3 {[%clk 0:02:00]}  Nxb5 {[%clk 0:02:13]} 17. Nxb5 {[%clk 0:02:01]}  Qxc6 {[%clk 0:02:14]} 18. a4 {[%clk 0:01:57]}  Rd8 {[%clk 0:02:02]} 19. Rc1 {[%clk 0:01:56]}  Qe6 {[%clk 0:01:45]} 20. Rc7+ {[%clk 0:01:15]}  Rd7 {[%clk 0:01:45]} 21. Ng5 {[%clk 0:00:57]}  Qf5 {[%clk 0:01:36]} 22. Qxd5 {[%clk 0:00:37]}  Kf8 {[%clk 0:01:33]} 23. Rxd7 {[%clk 0:00:35]}  Qxd7 {[%clk 0:01:34]} 24. Rd1 {[%clk 0:00:22]}  Qxd5 {[%clk 0:01:32]} 25. Rxd5 {[%clk 0:00:23]}  h6 {[%clk 0:01:30]} 26. Nf3 {[%clk 0:00:19]}  Ra8 {[%clk 0:01:17]} 27. h3 {[%clk 0:00:14]}  Be6 {[%clk 0:01:13]} 28. Rd6 {[%clk 0:00:11]}  Rxa4 {[%clk 0:01:05]} 29. Nc7 {[%clk 0:00:11]}  e4 {[%clk 0:01:05]} 30. Nxe6+ {[%clk 0:00:08]}  fxe6 {[%clk 0:01:05]} 31. Nh2 {[%clk 0:00:03]}  Rxb4 {[%clk 0:01:01]} 32. Rxe6 {[%clk 0:00:03]}  Kf7 {[%clk 0:01:01]} 33. Rc6 {[%clk 0:00:03]}  Rb1+ {[%clk 0:00:57]} 34. Nf1 {[%clk 0:00:04]}  b5 {[%clk 0:00:57]} 35. Rb6 {[%clk 0:00:04]}  Bc3 {[%clk 0:00:55]} 36. g4 {[%clk 0:00:04]}  b4 {[%clk 0:00:54]} 37. Kg2 {[%clk 0:00:04]}  b3 {[%clk 0:00:54]} 38. Ng3 {[%clk 0:00:05]}  b2 {[%clk 0:00:49]} 39. Nxe4 {[%clk 0:00:05]}  Bg7 {[%clk 0:00:49]} 40. Nd6+ {[%clk 0:00:05]}  Ke7 {[%clk 0:00:45]} 41. Nc4 {[%clk 0:00:06]}  Kd7 {[%clk 0:00:45]} 42. Rb7+ {[%clk 0:00:06]}  Kc6 {[%clk 0:00:44]} 43. Rxg7 {[%clk 0:00:05]}  Rg1+ {[%clk 0:00:44]} 44. Kxg1 {[%clk 0:00:05]}  b1=Q+ {[%clk 0:00:45]} 45. Kh2 {[%clk 0:00:05]}  Qa2 {[%clk 0:00:40]} 46. Ne5+ {[%clk 0:00:03]}  Kd5 {[%clk 0:00:40]} 47. Nd3 {[%clk 0:00:03]}  Ke4 {[%clk 0:00:33]} 48. Nc5+ {[%clk 0:00:03]}  Kf3 {[%clk 0:00:32]} 49. Nd3 {[%clk 0:00:02]}  Qa3 {[%clk 0:00:24]} 50. Rf7+ {[%clk 0:00:02]}  Ke2 {[%clk 0:00:25]} 51. Rd7 {[%clk 0:00:03]}  Qa4 {[%clk 0:00:20]} 52. Nf4+ {[%clk 0:00:02]}  Kxf2 {[%clk 0:00:18]} 53. Nxg6 {[%clk 0:00:02]}  Qxd7 {[%clk 0:00:18]} 54. Nf4 {[%clk 0:00:01]}  Kxe3 {[%clk 0:00:17]} 55. Ng2+ {[%clk 0:00:01]}  Kf2 {[%clk 0:00:17]} 0-1


[Site "https://www.chess.com"]